[Event "Budapest One Week IM-B 03-2025"]
[Site "Budapest"]
[Date "2025.03.17"]
[Round "1.1"]
[White "Ongut, Tamas Gunes"]
[Black "Pribelszky, Bence"]
[Result "1/2-1/2"]
[Annotator "TA"]
[ECO "C44"]
[WhiteElo "2290"]
[BlackElo "2400"]
[PlyCount "43"]
[EventDate "2025.03.17"]
[EventType "tourn"]
[EventCountry "HUN"]
[SourceTitle "playchess.com"]
[Source "ChessBase"]
[SourceQuality "1"]
[TimeControl "5400+30"]

{[%evp 16,43,42,19,41,33,27,16,15,0,0,0,0,0,0,0,0,0,0,7,25,17,17,-42,-45,-36,-21,-22,-21,-19]} 1. e4 {[%emt 0:13:04]} Nc6 {[%emt 0:01:15]} 2. Nf3 {[%emt 0:00:15]} e5 {[%emt 0:00:17]} 3. d4 {[%emt 0:01:49]} exd4 {[%emt 0:00:16]} 4. Bc4 {[%emt 0:00:31]} d6 {[%emt 0:12:30]} 5. Nxd4 {[%emt 0:01:20]} Nf6 {[%emt 0:00:13]} 6. Nc3 {[%emt 0:00:38]} Be7 {[%emt 0:00:48]} 7. O-O {[%emt 0:00:26]} O-O {[%emt 0:00:08]} 8. h3 {[%emt 0:05:40]} Re8 $1 {[%emt 0:02:37][%mdl 4] is recently more successful than 8...Ne5.} 9. Re1 {[%emt 0:01:52]} Bd7 {[%emt 0:08:34] C50: Hungarian Defence and Giuoco Pianissimo.} 10. Bg5 {[%emt 0:07:47][%cal Bc1g5,Bg5h4,Bh4e7][%mdl 32]} h6 {[%emt 0:04:48]} 11. Bh4 {[%emt 0:00:42]} Ne5 {[%emt 0:01:01]} 12. Bb3 {[%emt 0:02:35]} Nxe4 $146 {[%emt 0:27:33]} (12... c5 13. Nf5 Bxf5 14. exf5 Qd7 15. Nd5 Nxd5 16. Bxe7 Nxe7 17. Rxe5 Nxf5 18. Rd5 Rac8 {1-0 Khanbekyan,A (1095)-Beck,F (995) GER-chT U10 Magdeburg 2014 (4.2)}) 13. Bxe7 {[%emt 0:00:38]} Nxc3 {[%emt 0:00:06]} 14. Bxd8 {[%emt 0:00:45]} Nxd1 {[%emt 0:00:06][%cal Bc3d1,Bd1b2,Bb2c4][%mdl 32]} 15. Bxc7 {[%emt 0:00:55]} Nxb2 {[%emt 0:00:11]} 16. Bxd6 {[%emt 0:06:17] This pair of bishops is nice.} Nbc4 {[%emt 0:01:23]} 17. f4 {[%emt 0:16:18]} Nxd6 {[%emt 0:17:16]} 18. fxe5 {[%emt 0:00:09]} Nb5 {[%emt 0:00:11]} 19. Rad1 {[%emt 0:05:19]} (19. e6 $11 fxe6 20. Nxe6 Bxe6 21. Bxe6+ Kh8 22. Bf7 Rxe1+ 23. Rxe1) 19... Nxd4 $15 {[%emt 0:02:46]} 20. Rxd4 {[%emt 0:00:09]} Be6 {[%emt 0:00:05]} 21. Bxe6 {[%emt 0:01:15]} Rxe6 {[%emt 0:00:28]} 22. Rd7 {[%emt 0:00:10] Weighted Error Value: White=0.15 (very precise) /Black=0.05 (flawless)   Mistake:       	White=1     	---        OK:         	White=5     	Black=5      Best:        	White=2     	Black=2} 1/2-1/2

[Event "Budapest One Week IM-B 03-2025"]
[Site "Budapest"]
[Date "2025.03.17"]
[Round "1.2"]
[White "Mrithyunjay Mahadevan"]
[Black "Shah, Vishwa"]
[Result "1-0"]
[Annotator "NA RC"]
[ECO "A58"]
[WhiteElo "2295"]
[BlackElo "2172"]
[PlyCount "65"]
[EventDate "2025.03.17"]
[EventType "tourn"]
[EventCountry "HUN"]
[SourceTitle "playchess.com"]
[Source "ChessBase"]
[SourceQuality "1"]
[TimeControl "5400+30"]

1. d4 {[%emt 0:00:02]} Nf6 {[%emt 0:00:15]} 2. c4 {[%emt 0:00:06]} c5 {[%emt 0:00:17]} 3. d5 {[%emt 0:00:05]} b5 {[%emt 0:00:05]} 4. cxb5 {[%emt 0:00:04]} a6 {[%emt 0:00:05]} 5. bxa6 {[%emt 0:00:06]} g6 {[%emt 0:00:10]} 6. Nc3 {[%emt 0:00:05]} Bg7 {[%emt 0:00:12]} 7. e4 {[%emt 0:00:19]} O-O {[%emt 0:00:06]} 8. a4 {[%emt 0:00:06]} Qa5 {[%emt 0:07:35]} 9. Bd2 {[%emt 0:00:07]} Bxa6 {[%emt 0:00:38]} 10. Bxa6 {[%emt 0:00:46]} Qxa6 {[%emt 0:00:05]} 11. Nge2 {[%emt 0:02:03]} d6 {[%emt 0:12:16]} 12. O-O {[%emt 0:00:26]} Qb7 {[%emt 0:01:38]} 13. Qc2 {[%emt 0:01:20]} Na6 {[%emt 0:00:06]} 14. Nb5 {[%emt 0:00:26]} Ne8 {[%emt 0:03:24]} 15. Rac1 {[%emt 0:07:27]} Rb8 {[%emt 0:06:11]} 16. b4 {[%emt 0:13:14]} Nxb4 {[%emt 0:05:04]} 17. Bxb4 {[%emt 0:00:07]} cxb4 {[%emt 0:00:02]} 18. Qb3 {[%emt 0:05:50]} f5 {[%emt 0:03:35]} 19. Ned4 {[%emt 0:11:14]} Bxd4 {[%emt 0:14:48]} 20. Nxd4 {[%emt 0:00:15]} Nf6 {[%emt 0:00:51]} 21. Nc6 {[%emt 0:01:29]} Nxe4 {[%emt 0:00:10]} 22. Nxb8 {[%emt 0:02:21]} Rxb8 {[%emt 0:00:46]} 23. Rfe1 {[%emt 0:02:15]} Nc3 {[%emt 0:00:51]} 24. h3 {[%emt 0:07:19]} Kf8 {[%emt 0:06:31]} 25. a5 {[%emt 0:11:08]} Qb5 {[%emt 0:00:17]} 26. Rxc3 {[%emt 0:02:38]} bxc3 {[%emt 0:00:06]} 27. Qxc3 {[%emt 0:00:05]} Qxd5 {[%emt 0:05:21]} 28. a6 {[%emt 0:00:57]} Kf7 {[%emt 0:10:15]} 29. Rxe7+ {[%emt 0:01:18]} Kxe7 {[%emt 0:00:31]} 30. Qc7+ {[%emt 0:00:07]} Ke6 {[%emt 0:03:12]} 31. Qxb8 {[%emt 0:00:07]} Qa5 {[%emt 0:00:25]} 32. a7 {[%emt 0:00:51]} Qe1+ {[%emt 0:00:23]} 33. Kh2 {[%emt 0:00:08]} 1-0

[Event "Budapest One Week IM-B 03-2025"]
[Site "Budapest"]
[Date "2025.03.17"]
[Round "1.3"]
[White "Luebke, Florentin"]
[Black "Venkatesh, Narayan"]
[Result "0-1"]
[Annotator "TA"]
[ECO "A20"]
[WhiteElo "2233"]
[BlackElo "2203"]
[PlyCount "174"]
[EventDate "2025.03.17"]
[EventType "tourn"]
[EventCountry "HUN"]
[SourceTitle "playchess.com"]
[Source "ChessBase"]
[SourceQuality "1"]
[TimeControl "5400+30"]

{[%evp 19,174,0,20,29,24,20,16,10,30,19,25,18,24,13,39,12,20,20,23,20,24,6,45,6,12,0,0,0,0,-80,-80,-81,-77,-107,-115,-133,-133,-141,-129,-213,-160,-145,-132,-141,-132,-134,-142,-152,-146,-150,-154,-161,-170,-200,-202,-199,-197,-251,-234,-360,-225,-214,-200,-199,-199,-199,-199,-198,-172,-174,-120,-127,-125,-130,-74,-89,-80,-125,-81,-81,-81,-81,-81,-87,-81,-81,-81,-81,-81,-125,-81,-143,-59,-81,-81,-108,-100,-465,-463,-460,-448,-446,-397,-1114,-1044,-5639,-1075,-29954,-29960,-29965,-29965,-29966,-29969,-29968,-29969,-29967,-29969,-29969,-29969,-29969,-29969,-29970,-29971,-29969,-29970,-29971,-29971,-29973,-29973,-29973,-29974,-29976,-29977,-29977,-29978,-29978,-29979,-29979,-29980,-29980,-29981,-29981,-29982,-29982,-29982,-29982,-29983,-29983,-29984,-29984,-29985,-29984,-29986,-29985,-29986,-29989,-29990]} 1. c4 {[%emt 0:00:05]} e5 {[%emt 0:00:25]} 2. g3 {[%emt 0:00:33]} Nf6 {[%emt 0:00:19]} 3. Bg2 {[%emt 0:00:22]} d5 {[%emt 0:00:58]} 4. cxd5 {[%emt 0:00:08]} Nxd5 {[%emt 0:00:02]} 5. Nc3 {[%emt 0:00:18]} Nb6 {[%emt 0:00:14]} 6. Nf3 {[%emt 0:00:28]} Nc6 {[%emt 0:00:02]} 7. O-O {[%emt 0:00:12]} Be7 {[%emt 0:00:11]} 8. d3 {[%emt 0:00:25]} Be6 {[%emt 0:00:11]} 9. Be3 {[%emt 0:00:21]} O-O {[%emt 0:01:10]} 10. Rc1 {[%emt 0:00:37]} f6 {[%emt 0:01:33]} 11. d4 {[%emt 0:00:39] A29: English Opening: Four Knights Variation with 4 g3.} exd4 {[%emt 0:01:03]} 12. Nxd4 {[%emt 0:00:09]} Nxd4 {[%emt 0:00:09]} 13. Bxd4 {[%emt 0:00:18] The position is equal.} c6 {[%emt 0:00:49]} 14. Qd3 {[%emt 0:00:41]} Qd7 {[%emt 0:02:41]} 15. Rfd1 {[%emt 0:00:37]} Rad8 {[%emt 0:05:38]} 16. Qc2 $146 {[%emt 0:00:57]} (16. Qe4 f5 17. Qf3 Qe8 18. Qe3 Qf7 19. Bxb6 axb6 20. Qxb6 Bf6 21. e3 Rxd1+ 22. Rxd1 Bxc3 23. bxc3 Bxa2 24. Rd8 Qe7 25. Rd2 Be6 26. Qa7 Re8 27. h4 {½-½ Lie,E (2462)-Elsness,F (2458) NOR-chT 0910 2009 (3)}) 16... Qc8 {[%emt 0:03:38]} 17. Na4 {[%emt 0:17:35]} Nxa4 {[%emt 0:07:17]} 18. Qxa4 {[%emt 0:00:27]} a6 {[%emt 0:00:49]} 19. Bb6 {[%emt 0:02:42]} Rd7 {[%emt 0:02:09]} 20. b4 {[%emt 0:06:02]} Bd6 {[%emt 0:08:40]} 21. Qa5 {[%emt 0:09:52]} (21. Bd5 $5 Bxd5 22. Rxd5 $18) 21... Qe8 {[%emt 0:04:54]} 22. Rd2 {[%emt 0:11:34]} Be5 {[%emt 0:05:24]} 23. Rcd1 {[%emt 0:01:33]} Rff7 {[%emt 0:00:20]} 24. b5 {[%emt 0:16:17]} (24. Qa4 $11) 24... axb5 $17 {[%emt 0:09:56]} (24... cxb5 25. Bxb7 Bc4 (25... Rxb7 $2 26. Rd8 $18) 26. Bf3 $16 (26. Bxa6 Bxe2 27. Rc1 Rxd2 $16)) 25. f4 {[%emt 0:00:18]} Bb8 {[%emt 0:00:16]} 26. Qa8 {[%emt 0:00:32]} Qc8 $1 {[%emt 0:01:23]} 27. e4 {[%emt 0:13:41]} Rxd2 {[%emt 0:05:41]} 28. Rxd2 {[%emt 0:00:06]} Rd7 {[%emt 0:03:25]} 29. Rb2 {[%emt 0:02:29]} (29. Rxd7 $17 Bxd7 30. Qa3) 29... Rd1+ {[%emt 0:01:04]} 30. Kf2 {[%emt 0:00:07]} Bd6 $36 {[%emt 0:12:34][%mdl 2048] Black is on the roll.} 31. Qxc8+ {[%emt 0:00:15]} Bxc8 {[%emt 0:00:02]} 32. Bf3 {[%emt 0:00:32]} Rd3 {[%emt 0:01:38]} 33. Ke2 {[%emt 0:05:22]} Ra3 {[%emt 0:00:27] Black is more active.} 34. Rd2 {[%emt 0:00:22]} Be7 {[%emt 0:00:20]} 35. f5 {[%emt 0:01:31] Repels Be6} Kf7 {[%emt 0:01:29]} 36. Bh5+ {[%emt 0:01:34]} g6 {[%emt 0:02:06]} 37. Bg4 {[%emt 0:00:05] Black must now prevent fxg6+.} Kg7 {[%emt 0:02:06]} 38. Bd8 {[%emt 0:02:56]} (38. Bh3 $142) 38... Bc5 $19 {[%emt 0:02:23]} (38... Bxd8 39. Rxd8 gxf5 (39... Rxa2+ $2 40. Ke3 $19) 40. exf5 Rxa2+ 41. Ke3 Ra3+ 42. Kd4 $15) 39. Kd1 {[%emt 0:04:32]} (39. Kf1 {might work better.}) 39... Re3 {[%emt 0:02:45]} 40. Re2 {[%emt 0:00:02]} Rd3+ {[%emt 0:01:50]} 41. Rd2 {[%emt 0:00:05]} Rxd2+ {[%emt 0:00:05]} 42. Kxd2 {[%emt 0:00:10][%cal Od8f6][%mdl 4096] Endgame KBB-KBB. Black is a pawn up.} Bd6 {[%emt 0:01:51]} 43. Bb6 {[%emt 0:01:26]} Be5 {[%emt 0:03:14]} 44. Ke3 {[%emt 0:00:07]} gxf5 {[%emt 0:02:37]} (44... h5 $19 45. Bh3 gxf5 46. Bxf5 Bxf5 47. exf5 Kh6) 45. exf5 $17 {[%emt 0:00:22]} Kf7 {[%emt 0:00:45]} 46. Bc5 {[%emt 0:00:47]} Ke8 {[%emt 0:02:51]} (46... Bc7 $142 {White must now prevent ...b6.} 47. Ba3 b6 48. Bh5+ Kg7) 47. Bh5+ {[%emt 0:00:03]} Kd8 {[%emt 0:00:26]} 48. Ke4 {[%emt 0:01:03]} Bd7 {[%emt 0:01:02]} 49. g4 {[%emt 0:01:46][%cal Og4g5] [#]} Be8 $1 {[%emt 0:02:24]} 50. Bxe8 {[%emt 0:00:17]} Kxe8 {[%emt 0:00:04] KB-KB. Black is a pawn up.} 51. h4 {[%emt 0:00:55]} Bg3 {[%emt 0:01:01]} 52. h5 {[%emt 0:01:13]} Kf7 {[%emt 0:00:49]} 53. Be3 {[%emt 0:00:19]} Bd6 {[%emt 0:00:57]} 54. Kd4 {[%emt 0:00:51]} Be7 {[%emt 0:00:27]} 55. Bh6 {[%emt 0:00:41] [#]} (55. Ke4 $142) 55... c5+ {[%emt 0:00:35]} ({Black should play} 55... b4 $1 $17 56. Be3 b5) 56. Kd5 $15 {[%emt 0:00:34]} c4 {[%emt 0:00:21]} 57. Kd4 {[%emt 0:00:03]} Ba3 {[%emt 0:00:45]} 58. g5 $2 {[%emt 0:00:30][%mdl 8192] Now White is beyond hope.} (58. Be3 $17 {is a better chance.}) 58... fxg5 $19 {[%emt 0:00:18]} 59. Bxg5 {[%emt 0:00:02]} Bb2+ {[%emt 0:00:27]} 60. Ke4 {[%emt 0:00:55]} b4 {[%emt 0:00:26]} 61. Be3 $2 {[%emt 0:01:02]} (61. Bh4) 61... Kf6 {[%emt 0:00:39]} 62. Bc5 {[%emt 0:00:30]} Bc3 {[%emt 0:00:14]} (62... b3 $142 63. axb3 cxb3) 63. Be3 {[%emt 0:00:30]} b3 {[%emt 0:00:33] Black mates.} 64. axb3 {[%emt 0:00:30]} cxb3 {[%emt 0:00:02]} 65. Kd3 {[%emt 0:00:28]} b2 {[%emt 0:00:05]} 66. Kc2 {[%emt 0:00:05] [#]} Kxf5 $1 {[%emt 0:00:10]} 67. h6 {[%emt 0:00:16]} Bf6 {[%emt 0:00:38]} 68. Bc5 {[%emt 0:00:11]} Kg6 {[%emt 0:01:20]} 69. Bf8 {[%emt 0:00:07]} Bg5 {[%emt 0:00:45]} 70. Kxb2 {[%emt 0:00:23]} Bxh6 {[%emt 0:00:05]} 71. Bc5 {[%emt 0:01:15]} Bf4 {[%emt 0:00:43]} 72. Kc3 {[%emt 0:00:14]} h5 {[%emt 0:00:38]} 73. Kd3 {[%emt 0:00:06]} Kf5 {[%emt 0:00:30]} 74. Ke2 {[%emt 0:00:07]} h4 {[%emt 0:00:15]} 75. Kf2 {[%emt 0:02:15]} h3 {[%emt 0:00:13]} 76. Bb6 {[%emt 0:00:29]} Ke4 {[%emt 0:00:17]} 77. Ba5 {[%emt 0:00:31]} b5 {[%emt 0:00:59]} 78. Kg1 {[%emt 0:00:34]} Kd4 {[%emt 0:01:04]} 79. Bb4 {[%emt 0:00:28]} Kc4 {[%emt 0:00:11]} 80. Be7 {[%emt 0:00:06]} Be3+ {[%emt 0:00:16]} 81. Kh2 {[%emt 0:00:14]} Bc5 {[%emt 0:00:05]} 82. Bf6 {[%emt 0:00:32]} b4 {[%emt 0:00:10]} 83. Kxh3 {[%emt 0:00:30]} b3 {[%emt 0:00:31]} 84. Bb2 {[%emt 0:00:15]} Kd3 {[%emt 0:00:11]} 85. Kg4 {[%emt 0:00:22]} Kc2 {[%emt 0:00:06]} 86. Ba1 {[%emt 0:00:37]} Bb4 {[%emt 0:00:07]} 87. Kf3 {[%emt 0:00:03]} Bc3 {[%emt 0:00:07] Weighted Error Value: White=0.34/Black=0.13 (very precise)   Loses game:     	White=1     	---        Mistake:       	White=6     	Black=3      Inaccurate:     	White=7     	Black=5      OK:         	White=12    	Black=20     Best:        	White=4     	Black=3      Strong:       	---       	Black=2} 0-1

[Event "Budapest One Week IM-B 03-2025"]
[Site "Budapest"]
[Date "2025.03.17"]
[Round "1.4"]
[White "Kustar, Sandor"]
[Black "Turcsanyi, Vince Gergo"]
[Result "1/2-1/2"]
[Annotator "TA"]
[ECO "A15"]
[WhiteElo "2231"]
[BlackElo "2285"]
[PlyCount "86"]
[EventDate "2025.03.17"]
[EventType "tourn"]
[EventCountry "HUN"]
[SourceTitle "playchess.com"]
[Source "ChessBase"]
[SourceQuality "1"]
[TimeControl "5400+30"]

{[%evp 19,86,3,7,5,18,14,25,20,45,7,23,4,14,14,8,-8,48,28,41,33,45,50,39,36,82,66,106,122,153,146,153,100,141,148,145,153,152,137,126,116,109,114,131,101,160,132,142,141,145,156,144,136,106,8,130,131,118,96,123,1,19,-39,-33,-47,-41,-45,-55,-58,-20]} 1. c4 {[%emt 0:00:06]} Nf6 {[%emt 0:00:21]} 2. Nf3 {[%emt 0:00:49]} e6 {[%emt 0:00:13]} 3. b3 {[%emt 0:00:58]} d5 {[%emt 0:02:45]} 4. Bb2 {[%emt 0:00:15]} Be7 {[%emt 0:02:05]} 5. g3 {[%emt 0:00:48]} O-O {[%emt 0:00:53]} 6. Bg2 {[%emt 0:00:09]} b6 {[%emt 0:00:12]} 7. O-O {[%emt 0:02:54]} Bb7 {[%emt 0:00:12]} 8. d4 {[%emt 0:01:03]} Nbd7 {[%emt 0:01:31]} 9. cxd5 {[%emt 0:04:48]} exd5 {[%emt 0:00:17]} 10. Nc3 {[%emt 0:00:40]} Re8 {[%emt 0:01:01]} 11. Ne5 {[%emt 0:05:00] E17: Queen's Indian: 4 g3 Bb7 5 Bg2 Be7.} Bd6 {[%emt 0:09:13]} 12. f4 {[%emt 0:07:36]} a6 {[%emt 0:05:43]} 13. e3 {[%emt 0:04:21] White has an edge.} Qe7 {[%emt 0:15:06]} 14. Qc2 {[%emt 0:04:04]} Rac8 $146 {[%emt 0:14:48]} ({Predecessor:} 14... Rad8 15. Rae1 c5 16. Bf3 Rc8 17. Qg2 cxd4 18. exd4 Bb4 19. Nd3 Bxc3 20. Rxe7 Rxe7 {1-0 Izoria,Z (2602)-Lopez Gonzalez,D (2198) Speed Chess GP3 blitz 2021 (1)}) 15. Bf3 {[%emt 0:00:31]} c5 {[%emt 0:04:34]} 16. Qg2 {[%emt 0:02:46][%cal Rc3d5]} cxd4 {[%emt 0:21:20]} 17. exd4 {[%emt 0:00:25][%cal Rc3d5]} Bb4 {[%emt 0:04:40]} (17... b5 $1 $11) 18. Nxd5 $14 {[%emt 0:16:08]} Bxd5 {[%emt 0:00:35]} 19. Bxd5 {[%emt 0:00:06]} Nxd5 {[%emt 0:00:45]} 20. Qxd5 {[%emt 0:00:04]} Rc2 {[%emt 0:00:45]} 21. Rf2 {[%emt 0:00:56]} Rxf2 {[%emt 0:03:55]} (21... Nxe5 $14 {is superior.} 22. Rxc2 Nd3) 22. Kxf2 $16 {[%emt 0:00:09]} Nxe5 {[%emt 0:00:59]} 23. fxe5 {[%emt 0:00:54]} (23. Qxe5 Qd7 24. Qh5 Ba3 $19) (23. dxe5 $2 Rd8 24. Qe4 Rd2+ 25. Kf3 Rxb2 $19) 23... Qg5 {[%emt 0:00:39] ...Qd2+ would now be deadly.} 24. Rf1 {[%emt 0:08:28]} Rd8 {[%emt 0:06:13]} 25. Qe4 {[%emt 0:05:21]} (25. Qc4 $142 Qd2+ 26. Qe2) 25... Qd2+ {[%emt 0:02:03]} 26. Qe2 {[%emt 0:00:05]} Rc8 {[%emt 0:00:38]} 27. Qxd2 {[%emt 0:02:53]} Bxd2 {[%emt 0:00:02][%mdl 4096] Endgame KRB-KRB. White is a pawn up.} 28. Kf3 {[%emt 0:01:22]} Rc2 {[%emt 0:00:51]} 29. Ba3 {[%emt 0:04:56]} Rxa2 {[%emt 0:00:36]} 30. Be7 {[%emt 0:00:05]} Rb2 {[%emt 0:01:58]} 31. d5 {[%emt 0:00:56][%cal Bd4d5,Bd5d6][%mdl 32]} Rxb3+ {[%emt 0:00:12]} ({Black should play} 31... Bb4 32. Bxb4 Rxb3+ 33. Ke2 Rxb4) 32. Ke4 {[%emt 0:00:22]} Bb4 {[%emt 0:00:41]} 33. d6 {[%emt 0:03:27][%cal Oe5e6][%mdl 1024] White has strong compensation.} h6 {[%emt 0:00:39]} 34. Rd1 {[%emt 0:00:27] White is more active.} Rb2 {[%emt 0:00:30]} 35. Rd4 {[%emt 0:01:00]} Bc5 {[%emt 0:00:26] [#]} 36. h4 {[%emt 0:03:17] Prevents f6} Re2+ {[%emt 0:00:35] [#]} (36... f6 $1 $11 {keeps the balance.}) 37. Kd5 $1 {[%emt 0:01:22]} f6 {[%emt 0:00:31] [#]} ({Not} 37... Bxd4 $2 38. d7 $18) 38. exf6 $1 {[%emt 0:08:49]} gxf6 {[%emt 0:00:01]} (38... Bxd4 39. d7 Bxf6 (39... Re5+ $2 40. Kxd4 Re1 41. d8=Q+ $18) 40. d8=Q+ (40. d8=R+ Kh7 $15) 40... Kf7 41. Qf8+ (41. Bxf6 gxf6 42. Qh8 Rd2+ 43. Ke4 Re2+ 44. Kf4 Rf2+ 45. Kg4 Re2 $18) 41... Kg6 42. Bxf6 gxf6 43. g4 $18) 39. Ra4 {[%emt 0:00:32]} ({White should try} 39. Rf4 $16) 39... Kf7 $11 {[%emt 0:00:40]} 40. Rxa6 {[%emt 0:07:00]} (40. g4 $11) 40... Rd2+ $15 {[%emt 0:00:13] Black is slightly better.} 41. Kc6 {[%emt 0:00:17] Ra8 is the strong threat.} Ke6 {[%emt 0:00:17][%cal Rc5d6]} 42. Bf8 {[%emt 0:03:53]} Bxd6 {[%emt 0:00:57]} 43. Bxh6 {[%emt 0:00:19]} Rc2+ {[%emt 0:00:45] Weighted Error Value: White=0.21 (precise) /Black=0.18 (very precise)   Mistake:       	White=4     	Black=4      Inaccurate:     	White=1     	Black=3      OK:         	White=10    	Black=8      Best:        	White=3     	Black=4      Strong:       	White=2     	---} 1/2-1/2

[Event "Budapest One Week IM-B 03-2025"]
[Site "Budapest"]
[Date "2025.03.17"]
[Round "1.5"]
[White "Varga, Zoltan"]
[Black "Jing, Andrew"]
[Result "1/2-1/2"]
[Annotator "TA"]
[ECO "B42"]
[WhiteElo "2305"]
[BlackElo "2198"]
[PlyCount "87"]
[EventDate "2025.03.17"]
[EventType "tourn"]
[EventCountry "HUN"]
[SourceTitle "playchess.com"]
[Source "ChessBase"]
[SourceQuality "1"]
[TimeControl "5400+30"]

{[%evp 16,87,37,31,44,20,37,31,99,23,16,-2,58,61,61,63,54,15,14,0,0,0,7,8,11,6,6,25,17,33,35,52,57,27,65,53,184,173,144,91,179,87,114,109,245,139,138,66,68,71,57,65,91,58,56,62,60,55,152,152,150,79,117,125,116,64,88,54,81,62,70,0,0,0]} 1. e4 {[%emt 0:02:26]} c5 {[%emt 0:01:48]} 2. Nf3 {[%emt 0:00:05]} e6 {[%emt 0:00:05]} 3. d4 {[%emt 0:00:24]} cxd4 {[%emt 0:00:06]} 4. Nxd4 {[%emt 0:00:02]} a6 {[%emt 0:00:06]} 5. Bd3 {[%emt 0:00:15]} Bc5 {[%emt 0:00:55]} 6. Nb3 {[%emt 0:00:18]} Ba7 {[%emt 0:00:06]} 7. Qe2 {[%emt 0:00:04]} Nc6 {[%emt 0:00:57] 7...Ne7 is the hot move.} 8. Be3 {[%emt 0:00:05]} Nge7 {[%emt 0:01:34]} 9. Nc3 {[%emt 0:00:45]} O-O {[%emt 0:03:30] B42: Sicilian: Kan Variation: 5 Bd3.} 10. O-O-O {[%emt 0:02:44]} b5 {[%emt 0:02:59]} 11. f4 {[%emt 0:00:40]} Nb4 {[%emt 0:11:34]} (11... b4 $14 12. Na4 Bxe3+ 13. Qxe3 Na5) 12. Kb1 $146 {[%emt 0:00:31]} (12. a3 $16 Bxe3+ 13. Qxe3) (12. a3 Nxd3+ 13. Rxd3 Nc6 14. Bxa7 Rxa7 15. Qe3 b4 16. axb4 Rb7 17. Na2 Nxb4 18. Nxb4 Rxb4 {0-1 Draskovic,L (2492)-Drazic,S (2355) Skopje op 2022 (8)}) 12... Nxd3 $11 {[%emt 0:01:19]} 13. Rxd3 {[%emt 0:09:25]} f5 {[%emt 0:04:35]} (13... b4 $11 14. Na4 Qc7) 14. Bxa7 {[%emt 0:05:09]} Rxa7 {[%emt 0:01:46]} 15. exf5 {[%emt 0:00:05] White is much more active.} Nxf5 {[%emt 0:00:11]} 16. Ne4 {[%emt 0:00:01]} Bb7 {[%emt 0:03:04]} 17. Rhd1 {[%emt 0:04:23]} Bd5 $1 {[%emt 0:01:58]} 18. Nc3 {[%emt 0:13:23][%cal Be4c3,Bc3a4,Ba4c5][%mdl 32]} Bc4 {[%emt 0:00:22][%cal Bd5c4,Bc4b5,Bb5a6,Ba6b7][%mdl 32]} 19. Qf2 $36 {[%emt 0:00:01][%mdl 2048] Against Qb6. White has some pressure.} Rc7 {[%emt 0:03:00][%cal Ob5b4]} 20. R3d2 {[%emt 0:00:02]} b4 {[%emt 0:05:52]} 21. Na4 {[%emt 0:10:37]} Bb5 {[%emt 0:01:22]} 22. Nac5 {[%emt 0:00:46]} Qe7 {[%emt 0:00:42][%cal Oa6a5]} 23. g4 {[%emt 0:01:36]} Nh6 {[%emt 0:00:45]} 24. h3 {[%emt 0:00:21]} a5 {[%emt 0:07:12]} 25. Ne4 $1 {[%emt 0:01:53][%cal Of2b6]} Rc4 {[%emt 0:02:15]} (25... a4 $14 26. Qb6 d5) 26. Nd4 $18 {[%emt 0:05:44] A dynamic duo of knights.} Ba6 {[%emt 0:01:53] [#]} 27. b3 {[%emt 0:10:21]} (27. g5 $142 $1 Nf7 28. Re1) 27... Rc7 {[%emt 0:02:06]} (27... Rcc8 $16) 28. Qe3 {[%emt 0:08:33]} (28. Re1 $18 {is more deadly.}) 28... Nf7 {[%emt 0:04:22]} 29. f5 {[%emt 0:12:54]} (29. g5 {is more complex.} e5 30. Nf5 Qe6 31. Nxg7 Kxg7 32. f5) 29... Nd8 {[%emt 0:07:09]} (29... d5 $16) 30. fxe6 {[%emt 0:03:33]} (30. g5 $18) 30... dxe6 $16 {[%emt 0:00:07]} 31. Qg5 {[%emt 0:01:23]} (31. g5 $16) 31... Bb7 {[%emt 0:02:31]} 32. Qxe7 {[%emt 0:02:09][%csl Oe6] White attacks a weakness} Rxe7 {[%emt 0:00:05]} 33. Nc5 {[%emt 0:00:26]} Bd5 {[%emt 0:00:17] [#]} 34. Ndxe6 $1 {[%emt 0:00:35]} Nxe6 {[%emt 0:00:30]} 35. Rxd5 {[%emt 0:00:02] and Re5 would now be decisive} Nf4 {[%emt 0:00:46][%csl LRd5,LRh3]} 36. Rd7 {[%emt 0:00:26]} Rfe8 {[%emt 0:00:32]} ({Black should try} 36... Rxd7 $14 37. Nxd7 Re8) 37. Rxe7 {[%emt 0:01:15]} Rxe7 {[%emt 0:00:04][%mdl 4096] Endgame [#] KRN-KRN. White is a pawn up.} 38. h4 {[%emt 0:01:10]} (38. Rd8+ $1 Kf7 39. Nd3 Nxd3 40. Rxd3) 38... Ne2 {[%emt 0:01:38] ...Nc3+ would now be deadly.} 39. Kb2 {[%emt 0:00:08]} Nc3 {[%emt 0:01:36]} 40. Rf1 {[%emt 0:00:51]} ({Better is} 40. Rd8+ $16 Kf7 41. Nd3) 40... Nd5 $1 $14 {[%emt 0:09:20]} 41. Nd3 {[%emt 0:01:04]} Ne3 {[%emt 0:01:03][%csl LRf1,LRg4] Prevents Rf5} 42. Re1 {[%emt 0:00:17]} Kf7 {[%emt 0:00:48]} 43. g5 {[%emt 0:00:01]} (43. c3 $14) 43... Kg6 $11 {[%emt 0:01:27]} 44. Nf4+ {[%emt 0:02:29] Weighted Error Value: White=0.26 (precise) /Black=0.28 (precise)   Mistake:       	White=8     	Black=6      Inaccurate:     	White=3     	Black=4      OK:         	White=16    	Black=10     Best:        	White=3     	Black=2      Strong:       	White=1     	Black=2} 1/2-1/2